bitfinex/quotes_ETHUSD_20251028
["timestamp","ask_amount","ask_price","bid_price","bid_amount"]
[1761611456062,4.92601482,4123.6,4123.5,0.1236]
[1761611456277,4.92601482,4123.6,4123.5,0.002]
[1761611459266,5.44880935,4123.6,4123.5,0.002]
[1761611459471,4.92601482,4123.6,4123.5,0.002]
[1761611460241,5.44921327,4123.6,4123.5,0.002]
[1761611460441,3.0241478,4123.6,4123.5,0.002]
[1761611461069,5.44921327,4123.6,4123.5,0.002]
[1761611461971,5.47346392,4123.6,4123.5,0.002]
[1761611462668,4.50346392,4123.6,4123.5,0.002]
[1761611463175,5.47346392,4123.6,4123.5,0.4741]
[1761611463669,5.47346392,4123.6,4123.5,0.002]
[1761611464469,5.93496392,4123.6,4123.5,0.002]
[1761611465776,5.93596392,4123.6,4123.5,0.002]
[1761611466504,6.34806792,4123.6,4123.5,0.002]
[1761611466640,12.61162601,4123.6,4123.5,0.002]
[1761611466986,11.90822001,4123.6,4123.5,0.002]
[1761611467162,2.42535955,4123.1,4123.0,0.002]
[1761611467341,5.15771653,4123.1,4123.0,0.002]
[1761611467669,5.62581653,4123.1,4123.0,0.002]
[1761611468382,4.971858,4123.1,4123.0,0.002]
[1761611468679,6.03132053,4123.1,4123.0,0.002]
[1761611469189,5.377362,4123.1,4123.0,0.002]
[1761611469546,5.37670932,4123.1,4123.0,0.002]
[1761611470057,6.24954993,4123.1,4123.0,0.002]
[1761611470259,5.37670932,4123.1,4123.0,0.002]
[1761611470580,4.60779887,4122.7,4122.6,1e-08]
[1761611470783,11.49549673,4122.7,4122.6,1e-08]
[1761611470984,11.96359673,4122.7,4122.6,1e-08]
[1761611471388,12.83309733,4122.7,4122.6,1e-08]
[1761611471892,16.03759673,4122.7,4122.6,1e-08]
[1761611472463,16.90649826,4122.7,4122.6,1e-08]
[1761611473051,16.03759673,4122.7,4122.6,1e-08]
[1761611473786,5.84422042,4122.7,4122.6,1e-08]
[1761611474084,9.60044464,4122.7,4122.6,1e-08]
[1761611476553,9.13234464,4122.7,4122.6,1e-08]
[1761611476864,9.25394464,4122.7,4122.6,1e-08]
[1761611477054,9.72204464,4122.7,4122.6,1e-08]
[1761611478107,5.72004464,4122.7,4122.6,1e-08]
[1761611478304,9.72204464,4122.7,4122.6,1e-08]
[1761611480201,9.25394464,4122.7,4122.6,1e-08]
[1761611480409,5.03044464,4122.7,4122.6,1e-08]
[1761611480708,2.54719487,4122.7,4122.6,1e-08]
[1761611480875,3.51719487,4122.7,4122.6,1e-08]
[1761611481200,5.47789887,4122.7,4122.6,1e-08]
[1761611481573,3.92269887,4122.7,4122.6,1e-08]
[1761611482089,2.54719487,4122.7,4122.6,1e-08]
[1761611482294,0.97,4122.7,4122.6,0.43600001]
[1761611482477,0.97,4122.7,4122.6,5.38458336]
[1761611483103,2.5252,4122.7,4122.6,1.14603711]
[1761611483804,3.39559487,4122.7,4122.6,0.71003711]
[1761611483967,3.39559487,4122.7,4122.6,1e-08]
[1761611484998,4.95079487,4122.7,4122.6,1e-08]
[1761611485414,2.5252,4122.7,4122.6,0.43600001]
[1761611486088,4.95079487,4122.7,4122.6,0.43600001]
[1761611486407,4.95079487,4122.7,4122.6,1e-08]
[1761611488100,2.5252,4122.7,4122.6,1e-08]
[1761611488476,2.5252,4122.7,4122.6,0.43600001]
[1761611492035,4.95079487,4122.7,4122.6,0.43600001]
[1761611492483,2.5252,4122.7,4122.6,0.43600001]
[1761611493149,1.5552,4122.7,4122.6,0.43600001]
[1761611493443,2.5252,4122.7,4122.6,0.91561464]
[1761611493794,0.97,4122.7,4122.6,0.91561464]
[1761611494809,0.97,4122.7,4122.6,0.43600001]
[1761611497426,2.42554322,4122.8,4122.6,0.43600001]
[1761611497619,0.97,4122.7,4122.6,0.43600001]
[1761611498226,0.97,4122.7,4122.6,0.55760001]
[1761611500329,0.971,4122.7,4122.6,0.55760001]
[1761611500526,0.971,4122.7,4122.6,0.12160001]
[1761611500729,3.39659487,4122.7,4122.6,0.12160001]
[1761611500927,0.971,4122.7,4122.6,0.12160001]
[1761611501099,0.001,4122.7,4122.6,0.12160001]
[1761611501299,0.971,4122.7,4122.6,0.12160001]
[1761611501500,0.001,4122.7,4122.6,0.12160001]
[1761611501700,0.971,4122.7,4122.6,0.12160001]
[1761611501936,0.001,4122.7,4122.6,0.12160001]
[1761611502234,0.971,4122.7,4122.6,0.12160001]
[1761611502812,3.39659487,4122.7,4122.6,0.12160001]
[1761611503332,4.95179487,4122.7,4122.6,0.12160001]
[1761611505435,5.42549487,4122.7,4122.6,1e-08]
[1761611506319,5.94796464,4122.7,4122.6,1e-08]
[1761611506704,6.06956464,4122.7,4122.6,1e-08]
[1761611507531,6.47506864,4122.7,4122.6,1e-08]
[1761611509852,7.12634842,4122.7,4122.6,1e-08]
[1761611513420,6.47506864,4122.7,4122.6,1e-08]
[1761611514168,7.12634842,4122.7,4122.6,1e-08]
[1761611514373,6.47506864,4122.7,4122.6,1e-08]
[1761611519863,6.47506864,4122.7,4122.1,0.002]
[1761611519864,2.83139308,4122.2,4122.1,0.002]
[1761611520038,9.7429091,4122.2,4122.1,0.002]
[1761611520250,11.04982896,4122.2,4122.1,0.002]
[1761611520647,15.40997521,4122.2,4122.1,0.002]
[1761611521457,14.10305535,4122.2,4122.1,0.002]
[1761611521666,3.0542285,4121.8,4121.7,1e-08]
[1761611521832,13.49404452,4121.8,4121.7,1e-08]
[1761611522171,13.96774452,4121.8,4121.7,1e-08]
[1761611522658,13.96730971,4121.8,4121.7,1e-08]
[1761611524164,14.61951766,4121.8,4121.7,1e-08]
[1761611524966,10.38097141,4121.8,4121.7,1e-08]
[1761611526249,9.72876346,4121.8,4121.7,1e-08]
[1761611527779,10.38097141,4121.8,4121.7,1e-08]
[1761611528290,9.72876346,4121.8,4121.7,1e-08]
[1761611530358,10.18156346,4121.8,4121.7,1e-08]
[1761611531284,10.41810971,4121.8,4121.7,1e-08]
[1761611531579,13.96830971,4121.8,4121.7,1e-08]
[1761611531784,5.37466346,4121.8,4121.7,1e-08]
[1761611532088,8.62795946,4121.8,4121.7,1e-08]
[1761611532286,8.62795946,4121.8,4121.7,0.45280001]
[1761611532287,0.1216,4121.8,4121.7,0.45280001]
[1761611532486,3.5177245,4121.8,4121.7,0.45280001]
[1761611532785,5.0729245,4121.8,4121.7,0.45280001]
[1761611532990,3.5177245,4121.8,4121.7,0.45280001]
[1761611534158,1.0926,4121.8,4121.7,0.45280001]
[1761611534364,5.0739245,4121.8,4121.7,1e-08]
[1761611534582,5.4794285,4121.8,4121.7,1e-08]
[1761611534782,6.47481249,4121.8,4121.7,1e-08]
[1761611534993,6.5719469,4121.8,4121.7,1e-08]
[1761611535201,10.81049315,4121.8,4121.7,1e-08]
[1761611535758,6.5719469,4121.8,4121.7,1e-08]
[1761611536569,7.22415485,4121.8,4121.7,1e-08]
[1761611536769,6.5719469,4121.8,4121.7,1e-08]
[1761611537187,6.0980469,4121.8,4121.7,1e-08]
[1761611537375,6.75025485,4121.8,4121.7,1e-08]
[1761611537556,7.65840849,4121.8,4121.7,1e-08]
[1761611537764,8.62840849,4121.8,4121.7,0.45280001]
[1761611537971,9.03391249,4121.8,4121.7,1e-08]
[1761611538895,5.03091249,4121.8,4121.7,1e-08]
[1761611539100,6.00091249,4121.8,4121.7,0.45280001]
[1761611540992,6.00091249,4121.8,4121.7,1e-08]
[1761611542394,6.00091249,4121.8,4121.7,0.45280001]
[1761611543099,6.00091249,4121.8,4121.7,1e-08]
[1761611549592,6.65312044,4121.8,4121.7,1e-08]
[1761611551080,6.47481249,4121.8,4121.7,1e-08]
[1761611551298,7.34544791,4121.8,4121.7,1e-08]
[1761611551604,6.57194454,4121.8,4121.7,1e-08]
[1761611557906,7.87789768,4121.8,4121.7,1e-08]
[1761611558861,0.405504,4121.2,4120.6,0.044]
[1761611559153,5.25967345,4120.7,4120.6,1e-08]
[1761611559347,5.87896014,4120.7,4120.6,1e-08]
[1761611559543,6.79026014,4120.7,4120.6,1e-08]
[1761611560117,7.66160434,4120.7,4120.6,1e-08]
[1761611560649,6.79026014,4120.7,4120.6,1e-08]
[1761611563126,7.6603974,4120.7,4120.6,1e-08]
[1761611566259,6.79026014,4120.7,4120.6,1e-08]
[1761611567461,9.82426014,4120.7,4120.6,1e-08]
[1761611568839,9.94586014,4120.7,4120.6,1e-08]
[1761611570253,9.94586014,4120.7,4120.6,0.00200001]
[1761611571742,3.98203104,4120.6,4120.1,1e-08]
[1761611571934,7.04964235,4120.2,4120.1,1e-08]
[1761611572135,9.99819298,4120.2,4120.1,1e-08]
[1761611572347,10.43639298,4120.2,4120.1,1e-08]
[1761611572543,10.53356916,4120.2,4120.1,1e-08]
[1761611573637,11.18523877,4120.2,4120.1,1e-08]
[1761611575133,10.74703877,4120.2,4120.1,1e-08]
[1761611575734,5.65810042,4120.2,4120.1,1e-08]
[1761611576167,9.66310042,4120.2,4120.1,1e-08]
[1761611581677,5.47475063,4120.2,4120.1,0.16300001]
[1761611581840,5.59635063,4120.2,4120.1,0.63610001]
[1761611582045,6.00185463,4120.2,4120.1,0.63610001]
[1761611582775,6.00185463,4120.2,4120.1,0.16300001]
[1761611582989,6.00185463,4120.2,4120.1,1e-08]
[1761611583986,6.53192424,4120.2,4120.1,1e-08]
[1761611584166,5.88025463,4120.2,4120.1,1e-08]
[1761611584491,6.31675463,4120.2,4120.1,1e-08]
[1761611584658,7.18689189,4120.2,4120.1,1e-08]
[1761611585062,7.18689189,4120.2,4117.8,2.428476]
[1761611585063,0.2328,4118.4,4116.6,0.4319]
[1761611585262,0.2328,4118.4,4115.8,0.1497]
[1761611585263,1.960704,4118.0,4117.0,0.4319]
[1761611585500,2.42880136,4117.3,4117.0,0.4319]
[1761611585695,0.971,4117.2,4117.0,0.4319]
[1761611585897,2.85824772,4118.4,4117.0,0.4319]
[1761611586098,1.376504,4118.1,4117.0,0.4319]
[1761611586271,2.42853535,4117.8,4117.0,0.4319]
[1761611586667,1.5552,4118.0,4117.0,0.4319]
[1761611586668,2.42857039,4117.7,4117.0,0.4319]
[1761611586867,2.42857039,4117.7,4117.2,0.4435]
[1761611587562,2.42843528,4117.9,4117.2,0.4435]
[1761611587758,1.376504,4118.1,4117.2,0.4435]
[1761611587994,0.52214902,4118.2,4117.2,0.4435]
[1761611588214,1.960704,4118.6,4118.1,0.163]
[1761611588375,0.971,4118.3,4118.1,0.163]
[1761611588565,0.971,4118.3,4118.2,0.4435]
[1761611591377,0.971,4118.3,4118.2,3.41806477]
[1761611591697,1.5552,4118.6,4118.2,3.41806477]
[1761611591698,2.42767026,4119.2,4118.3,2.4281716]
[1761611592012,2.5262,4119.1,4118.3,2.8716716]
[1761611592170,0.971,4119.1,4118.4,0.4435]
[1761611592370,3.39873281,4119.1,4118.4,0.4435]
[1761611592569,3.39873281,4119.1,4118.5,0.3417991]
[1761611592871,0.971,4119.1,4118.5,0.3417991]
[1761611593172,0.971,4119.1,4118.6,0.4435]
[1761611594101,3.39871519,4119.1,4118.8,0.1216]
[1761611594295,0.971,4119.1,4118.8,0.1216]
[1761611594598,0.971,4119.1,4118.9,0.4435]
[1761611596896,0.971,4119.1,4118.9,2.87131454]
[1761611597074,0.971,4119.1,4119.0,0.72366728]
[1761611597279,0.971,4119.8,4119.0,1.28876728]
[1761611597481,0.971,4119.8,4119.2,4.24375827]
[1761611597788,0.971,4119.8,4119.7,0.1216]
[1761611597999,0.971,4119.8,4119.7,0.5651]
[1761611598403,3.39830229,4119.8,4119.7,0.1216]
[1761611598589,3.39830229,4119.8,4119.0,0.72366728]
[1761611598590,2.42739292,4119.7,4119.1,0.4435]
[1761611598778,2.42760598,4119.3,4119.2,0.1216]
[1761611599801,0.405504,4119.7,4119.2,0.5651]
[1761611599998,2.83291097,4119.7,4119.2,0.5651]
[1761611600328,2.42742763,4119.6,4119.3,0.4435]
[1761611600480,3.98262763,4119.6,4119.3,0.4435]
[1761611600686,2.42742763,4119.6,4119.3,0.4435]
[1761611601812,1.0926,4119.8,4119.3,0.4435]
[1761611602022,2.42740945,4119.7,4119.3,0.4435]
[1761611602610,1.0926,4119.8,4119.3,0.4435]
[1761611603013,2.42737628,4119.7,4119.3,0.4435]
[1761611603414,2.4274428,4119.6,4119.3,0.4435]
[1761611603588,2.42742013,4119.6,4119.3,0.4435]
[1761611604026,3.98256799,4119.7,4119.3,0.4435]
[1761611604728,1.5552,4119.7,4119.3,0.4435]
[1761611604932,3.98260608,4119.7,4119.3,0.4435]
[1761611606128,0.001,4119.6,4119.3,0.4435]
[1761611606332,0.001,4119.6,4119.3,0.7427858]
[1761611606516,0.001,4119.6,4119.5,0.1216]
[1761611606929,0.001,4119.6,4119.5,0.5651]
[1761611610500,0.001,4119.6,4119.5,0.58739459]
[1761611611228,0.001,4119.6,4119.5,0.14389459]
[1761611611592,0.001,4119.6,4119.5,0.58739459]
[1761611612635,0.001,4119.6,4119.5,0.14389459]
[1761611613006,2.42842013,4119.6,4119.5,0.02229459]
[1761611613611,3.98362013,4119.6,4119.5,0.02229459]
[1761611614037,4.44442013,4119.6,4119.5,0.02229459]
[1761611615545,4.84112413,4119.6,4119.5,0.02229459]
[1761611616320,5.36337674,4119.6,4119.5,0.02229459]
[1761611616771,0.001,4119.6,4119.5,4.72895286]
[1761611616950,0.001,4119.6,4119.5,7.62932721]
[1761611617514,0.001,4119.6,4119.5,3.38556894]
[1761611617915,0.001,4119.6,4119.5,0.95808988]
[1761611618145,0.001,4119.6,4119.5,3.38556894]
[1761611618726,0.001,4119.6,4119.5,0.95808988]
[1761611619013,0.001,4119.6,4119.5,0.49518988]
[1761611619227,0.001,4119.6,4119.5,0.02229459]
[1761611620519,2.42842013,4119.6,4119.5,0.02229459]
[1761611622453,0.001,4119.6,4119.5,0.02229459]
[1761611623724,0.972,4119.6,4119.5,2.91267365]
[1761611626629,0.972,4119.6,4119.5,3.03427365]
[1761611626828,0.972,4119.6,4119.5,4.0048324]
[1761611642667,0.001,4119.6,4119.5,3.5419324]
[1761611642871,0.001,4119.6,4119.5,4.0048324]
[1761611645066,0.001,4119.6,4119.5,0.14389459]
[1761611646289,0.001,4119.6,4119.5,2.57137365]
[1761611647170,0.001,4119.6,4119.5,0.14389459]
[1761611647568,0.001,4119.6,4119.5,2.57137365]
[1761611648111,0.001,4119.6,4119.5,3.02647365]
[1761611648282,0.001,4119.6,4119.5,8.24001126]
[1761611648807,0.001,4119.6,4119.5,3.54115299]
[1761611649182,0.001,4119.6,4119.5,3.99625299]
[1761611649715,0.001,4119.6,4119.5,3.54115299]
[1761611649928,0.001,4119.6,4119.5,0.14389459]
[1761611650624,0.001,4119.6,4119.5,2.57137365]
[1761611653016,0.001,4119.6,4119.5,0.14389459]
[1761611653230,0.001,4119.6,4119.5,2.57137365]
[1761611658152,0.001,4119.6,4119.5,0.14389459]
[1761611658356,2.89732013,4119.6,4119.5,0.14389459]
[1761611658519,2.89732013,4119.6,4119.5,0.02229459]
[1761611658715,3.42138603,4119.6,4119.5,0.02229459]
[1761611659144,5.38209003,4119.6,4119.5,0.02229459]
[1761611659416,5.50369003,4119.6,4119.5,0.02229459]
[1761611659954,5.50369003,4119.6,4117.7,5.09064727]
[1761611659955,5.50369003,4119.6,4115.0,0.163]
[1761611659956,5.971704,4119.5,4115.0,0.163]
[1761611660251,5.971704,4119.5,4116.1,0.1563]
[1761611660252,0.624304,4117.2,4116.1,0.1563]
[1761611660417,5.57833913,4117.2,4116.1,0.1563]
[1761611660768,2.7669659,4117.2,4116.2,0.02429425]
[1761611660948,3.7369659,4117.2,4116.1,0.1563]
[1761611661254,3.7369659,4117.2,4116.6,0.002]
[1761611661469,3.2129,4117.2,4116.6,0.002]
[1761611662351,3.2139,4117.2,4116.6,0.002]
[1761611662555,5.64273513,4117.2,4116.6,0.002]
[1761611663659,2.745,4117.2,4116.6,0.002]
[1761611664152,3.2139,4117.2,4116.6,0.002]
[1761611664665,5.64273513,4117.2,4116.6,0.002]
[1761611665018,1.5552,4117.2,4116.6,0.002]
[1761611665243,2.5262,4117.2,4117.1,0.1806]
[1761611665659,0.2188,4117.7,4117.1,0.1806]
[1761611665660,0.2188,4118.1,4117.2,2.42880821]
[1761611665863,0.971,4118.0,4117.2,2.42880821]
[1761611666332,0.2188,4118.1,4117.1,0.89216948]
[1761611666532,1.4399,4118.0,4117.1,0.1306]
[1761611666732,1.5552,4117.9,4117.1,0.1306]
[1761611666945,2.42848816,4117.8,4117.1,0.1306]
[1761611667961,2.89733738,4117.9,4117.1,0.1306]
[1761611668144,1.5552,4117.8,4117.1,0.1306]
[1761611668445,1.5552,4117.8,4117.1,0.43154385]
[1761611668670,2.42848404,4117.8,4117.1,0.43154385]
[1761611669662,2.42848404,4117.8,4117.1,0.38154385]
[1761611670055,2.42848404,4117.8,4117.5,0.1216]
[1761611670252,2.42855025,4117.7,4117.5,0.1216]
[1761611670656,1.5552,4117.6,4117.5,0.1216]
[1761611672665,4.95457435,4118.0,4117.5,0.1216]
[1761611672864,5.42347435,4118.0,4117.5,0.1216]
[1761611673071,2.4284482,4117.9,4117.5,0.1216]
[1761611673277,1.5552,4117.8,4117.5,0.1216]
[1761611673984,2.42849478,4117.8,4117.5,0.1216]
[1761611674181,3.98379918,4117.6,4117.5,0.1216]
[1761611674339,1.5552,4117.6,4117.5,0.1216]
[1761611674675,2.42855292,4117.7,4117.5,0.1216]
[1761611674975,2.9825,4118.0,4117.5,0.1216]
[1761611675135,0.971,4118.0,4117.5,0.1216]
[1761611675332,1.5552,4117.8,4117.5,0.1216]
[1761611675978,0.971,4117.7,4117.5,0.1216]
[1761611676152,0.971,4117.7,4117.5,0.41662925]
[1761611678662,0.971,4117.7,4117.5,2.95014533]
[1761611678978,0.971,4117.7,4117.5,0.5215]
[1761611679157,0.971,4117.7,4117.6,0.3999]
[1761611679661,0.001,4117.7,4117.6,0.3999]
[1761611679862,0.001,4117.7,4117.6,2.42859918]
[1761611680081,0.001,4117.7,4117.6,3.4479903]
[1761611681488,0.001,4117.7,4117.6,8.56292356]
[1761611681779,0.001,4117.7,4117.6,8.53863757]
[1761611681978,0.001,4117.7,4117.6,3.4479903]
[1761611682188,0.001,4117.7,4117.6,0.61949112]
[1761611682479,0.001,4117.7,4117.6,2.55019918]
[1761611682773,0.001,4117.7,4117.6,0.1216]
[1761611684847,1.6479,4117.7,4117.1,0.002]
[1761611685082,4.07644296,4117.7,4117.1,0.002]
[1761611685349,0.4563,4117.6,4117.1,0.002]
[1761611685648,2.42871001,4117.5,4117.1,0.002]
[1761611686150,0.4563,4117.4,4117.1,0.002]
[1761611686561,2.42877613,4117.3,4117.1,0.002]
[1761611687077,0.4563,4117.2,4117.1,0.002]
[1761611687580,0.97824866,4117.2,4117.1,0.002]
[1761611688272,3.40708379,4117.2,4117.1,0.002]
[1761611688691,0.97824866,4117.2,4117.1,0.002]
[1761611690554,0.52194866,4117.2,4117.1,0.002]
[1761611690964,1.49294866,4117.2,4117.1,0.002]
[1761611692998,0.52194866,4117.2,4117.1,0.0826]
[1761611693160,0.52194866,4117.2,4117.1,0.002]
[1761611693973,0.971,4117.3,4117.1,0.002]
[1761611694367,0.97943505,4117.2,4117.1,0.002]
[1761611694754,0.97943505,4117.2,4117.1,0.1236]
[1761611694972,3.40828091,4117.2,4117.1,0.1236]
[1761611695607,4.96348091,4117.2,4117.1,0.002]
[1761611695759,5.61624269,4117.2,4117.1,0.002]
[1761611695954,6.02174669,4117.2,4117.1,0.002]
[1761611696571,5.36898491,4117.2,4117.1,0.002]
[1761611698894,5.36998491,4117.2,4117.1,0.002]
[1761611699371,6.02348491,4117.2,4117.1,0.002]
[1761611699799,6.13268091,4117.2,4117.1,0.002]
[1761611700097,5.93548091,4117.2,4117.1,0.002]
[1761611701610,6.34098491,4117.2,4117.1,0.002]
[1761611701814,6.99448491,4117.2,4117.1,0.002]
[1761611702106,6.34098491,4117.2,4117.1,0.002]
[1761611702897,7.2140889,4117.2,4117.1,0.002]
[1761611703504,6.34098491,4117.2,4117.1,0.002]
[1761611704492,5.36998491,4117.2,4117.1,0.002]
[1761611704668,3.05034578,4117.2,4117.1,0.002]
[1761611704873,2.07934578,4117.2,4117.1,0.002]
[1761611705067,0.972,4117.2,4117.1,0.0826]
[1761611705271,0.972,4117.2,4117.1,0.85768832]
[1761611705672,0.972,4117.2,4117.1,0.45778832]
[1761611706410,0.972,4117.2,4117.1,0.2042]
[1761611707405,0.001,4117.2,4117.1,3.03299412]
[1761611708294,0.001,4117.2,4117.1,0.6041]
[1761611708494,0.001,4117.2,4117.1,0.1236]
[1761611710625,2.90043513,4117.2,4117.1,0.002]
[1761611711688,4.86113913,4117.2,4117.1,0.002]
[1761611711900,5.50542796,4117.2,4117.1,0.002]
[1761611714230,5.03482796,4117.2,4117.1,0.002]
[1761611714525,3.04988883,4117.2,4117.1,0.002]
[1761611714731,5.47872396,4117.2,4117.1,0.002]
[1761611714898,3.04988883,4117.2,4117.1,0.002]
[1761611715702,2.07888883,4117.2,4117.1,0.002]
[1761611715938,3.04988883,4117.2,4117.1,0.0826]
[1761611716424,3.04988883,4117.2,4117.1,0.002]
[1761611716828,5.47872396,4117.2,4117.1,0.002]
[1761611718432,2.07888883,4117.2,4117.1,0.0826]
[1761611718594,0.001,4117.2,4117.1,0.4825]
[1761611718798,0.001,4117.2,4117.1,0.6041]
[1761611719126,0.001,4117.2,4117.1,1.15273646]
[1761611720426,0.001,4117.2,4117.1,3.18173058]
[1761611720592,0.001,4117.2,4117.1,3.03299412]
[1761611721610,0.001,4117.2,4117.1,0.6041]
[1761611721810,0.001,4117.2,4117.1,0.1236]
[1761611728134,2.42983513,4117.2,4117.1,0.1236]
[1761611728522,2.90043513,4117.2,4117.1,0.002]
[1761611730626,8.70491648,4117.2,4117.1,0.002]
[1761611730823,9.34978136,4117.2,4117.1,0.002]
[1761611731214,9.75528536,4117.2,4117.1,0.002]
[1761611731923,10.40824752,4117.2,4117.1,0.002]
[1761611732630,9.75528536,4117.2,4117.1,0.002]
[1761611733822,10.40824752,4117.2,4117.1,0.002]
[1761611734028,9.75528536,4117.2,4117.1,0.002]
[1761611734536,10.40948886,4117.2,4117.1,0.002]
[1761611734729,5.50600401,4117.2,4117.1,0.002]
[1761611735423,5.10050001,4117.2,4117.1,0.002]
[1761611735616,6.07150001,4117.2,4117.1,0.002]
[1761611741868,6.47700401,4117.2,4117.1,0.002]
[1761611742765,7.13120751,4117.2,4117.1,0.002]
[1761611743373,7.13110836,4117.2,4117.1,0.002]
[1761611744364,6.47700401,4117.2,4117.1,0.002]
[1761611745431,5.50600401,4117.2,4117.1,0.002]
[1761611745763,10.16701735,4117.2,4117.1,0.002]
[1761611747464,9.51300401,4117.2,4117.1,0.002]
[1761611747837,10.16701735,4117.2,4117.1,0.002]
[1761611750066,10.04541735,4117.2,4117.1,0.002]
[1761611750235,10.26330469,4117.2,4117.1,0.002]
[1761611750763,5.47930001,4117.2,4117.1,0.002]
[1761611751062,5.47930001,4117.2,4117.1,0.0826]
[1761611751267,5.47930001,4117.2,4117.1,0.4825]
[1761611752130,5.47930001,4117.2,4117.1,0.0826]
[1761611754058,4.50830001,4117.2,4117.1,0.0826]
[1761611754266,5.47930001,4117.2,4117.1,0.0826]
[1761611755845,5.47930001,4117.2,4117.1,0.4825]
[1761611757262,5.47930001,4117.2,4117.1,0.0826]
[1761611757858,4.50830001,4117.2,4117.1,0.0826]
[1761611758182,5.47930001,4117.2,4117.1,0.0826]
[1761611761188,5.47930001,4117.2,4117.1,0.4825]
[1761611761859,2.07946488,4117.2,4117.1,0.4825]
[1761611762053,1.49526488,4117.2,4117.1,0.77364985]
[1761611762271,0.972,4117.2,4117.1,0.77364985]
[1761611762657,0.972,4117.2,4117.1,0.57284985]
[1761611763266,0.972,4117.2,4116.6,0.002]
[1761611763477,0.972,4117.2,4116.6,2.43117743]
[1761611763677,0.972,4117.2,4116.6,2.4311885]
[1761611763678,0.001,4117.2,4116.6,2.4311885]
[1761611763884,0.971,4117.1,4116.6,2.4311885]
[1761611764101,0.971,4117.1,4116.7,2.42908116]
[1761611764283,0.001,4117.2,4116.8,0.91095913]
[1761611764495,0.971,4117.1,4116.8,0.91095913]
[1761611764820,0.971,4117.1,4116.9,0.2011]
[1761611765969,0.971,4117.1,4116.9,2.63007167]
[1761611766396,0.971,4117.1,4117.0,0.2011]
[1761611766600,0.001,4117.2,4117.0,0.70701951]
[1761611766772,0.001,4117.2,4117.0,0.2011]
[1761611771604,0.001,4117.2,4117.0,2.63005054]
[1761611771973,0.001,4117.2,4117.1,0.3227]
[1761611773177,0.001,4117.2,4117.1,2.75159412]
[1761611775890,0.001,4117.2,4117.1,0.3227]
[1761611776196,0.001,4117.2,4117.1,0.85299727]
[1761611777106,0.001,4117.2,4117.1,3.28189139]
[1761611777291,0.001,4117.2,4117.1,0.85299727]
[1761611777789,0.001,4117.2,4117.1,0.65189727]
[1761611778103,0.001,4117.2,4117.1,0.85299727]
[1761611778309,0.001,4117.2,4117.1,3.28189139]
[1761611778682,0.001,4117.2,4117.1,3.08079139]
[1761611779212,0.001,4117.2,4117.1,0.65189727]
[1761611779404,0.001,4117.2,4117.1,0.3227]
[1761611780998,0.001,4117.2,4117.1,2.62999412]
[1761611781191,0.001,4117.2,4117.1,3.35887037]
[1761611782319,0.001,4117.7,4117.6,2.42859918]
[1761611782520,0.001,4117.7,4117.6,7.5495702]
[1761611782725,0.001,4117.7,4117.6,8.72420886]
[1761611783089,0.001,4117.7,4117.6,8.82137465]
[1761611783387,0.001,4117.7,4117.6,10.37657465]
[1761611785012,0.001,4118.1,4118.0,2.42836328]
[1761611785219,0.001,4118.1,4118.0,9.10453194]
[1761611785518,0.001,4118.1,4118.0,10.45475569]
[1761611786304,0.001,4118.1,4118.0,10.55190897]
[1761611786705,0.001,4118.1,4118.0,10.95741297]
[1761611788212,0.001,4119.6,4119.5,2.42747906]
[1761611788416,0.001,4119.6,4119.5,7.52416409]
[1761611788607,0.001,4119.6,4119.5,8.7204362]
[1761611788995,0.001,4119.6,4119.5,9.44894783]
[1761611790113,0.001,4119.6,4119.5,9.24784783]
[1761611790526,0.001,4119.6,4119.5,9.27014242]
[1761611791231,0.001,4119.6,4119.5,4.29505739]
[1761611794846,0.001,4119.6,4119.5,1.86757833]
[1761611795009,0.4487,4119.6,4119.5,2.57137365]
[1761611795422,0.001,4119.6,4119.5,2.57137365]
[1761611798631,0.001,4119.6,4119.5,0.14389459]
[1761611799450,0.4487,4119.6,4119.5,0.14389459]
[1761611800324,0.001,4119.6,4119.5,0.14389459]
[1761611801815,0.001,4119.6,4119.5,2.57137365]
[1761611802931,0.001,4119.6,4119.5,0.14389459]
[1761611804249,0.4487,4119.6,4119.5,0.14389459]
[1761611806942,2.87612013,4119.6,4119.5,0.14389459]
[1761611807276,0.4487,4119.6,4119.5,0.14389459]
[1761611807863,2.87612013,4119.6,4119.5,0.14389459]
[1761611808937,0.4487,4119.6,4119.5,0.14389459]
[1761611811367,2.87612013,4119.6,4119.5,0.14389459]
[1761611812173,2.87612013,4119.6,4119.5,0.02229459]
[1761611812476,4.95438898,4119.6,4119.5,0.02229459]
[1761611813247,5.60826995,4119.6,4119.5,0.02229459]
[1761611815299,4.95438898,4119.6,4119.5,0.02229459]
[1761611817400,5.35989298,4119.6,4119.5,0.02229459]
[1761611821406,4.50668898,4119.6,4119.5,0.02229459]
[1761611821595,5.47768898,4119.6,4119.5,0.02229459]
[1761611822171,2.5272,4119.6,4119.5,0.02229459]
[1761611822372,0.972,4119.6,4119.5,0.02229459]
[1761611822680,4.95462013,4119.6,4119.5,0.02229459]
[1761611823981,5.40232013,4119.6,4119.5,0.02229459]
[1761611826082,2.9749,4119.6,4119.5,0.02229459]
[1761611826421,1.5562,4119.6,4119.5,0.02229459]
[1761611826605,0.001,4119.6,4119.5,2.44977365]
[1761611826805,0.001,4119.6,4119.5,3.67255247]
[1761611826997,0.001,4119.6,4119.5,3.64827768]
[1761611827882,0.001,4119.6,4119.5,3.67255247]
[1761611828083,0.001,4119.6,4119.5,3.64827768]
[1761611832326,0.001,4119.6,4119.5,4.37677162]
[1761611832839,0.001,4119.6,4119.5,3.44717768]
[1761611833041,0.001,4119.6,4119.5,0.02229459]